{"text_format":"1","workbook":"xlsx","n_sheets":1,"sheets":["Feuil1"],"not_rendered":{"charts":0,"images":0,"macros":0,"external_links":0,"defined_names":0,"comments":0,"pivot_tables":0},"unopened":[],"bounds":{"document_bytes":16777216,"sheet_cells":100000,"rows_first":2000,"rows_last":500,"rows_between":2000,"halvings":0,"cell_chars":16384,"cell_head_chars":4096},"cells_cut":0,"cells_raw":0,"read":"whole","date_system":"1900"}

{"sheet":"Feuil1","index":0,"n_rows":71,"n_cols":14,"rows_kept":71,"cut":false,"hidden":false,"merged":[]}
[]
[]
[]
[]
[]
[null,null,null,null,null,null,null,null,"DATE","MONTANT",null,null,null,"nombre de jours de l'année en cours sans montant"]
[null,null,null,null,null,null,null,null,"2019-01-02",{"$f":"RANDBETWEEN(10000,15000)","v":13727}]
[null,null,null,null,null,null,null,null,"2019-01-02",14928]
[null,null,null,null,null,null,null,null,"2019-01-02",10034]
[null,null,null,null,null,null,null,null,"2019-02-04",13328]
[null,null,null,null,null,null,null,null,"2019-02-04",10626]
[null,null,null,null,null,null,null,null,"2019-02-04",14283]
[null,null,null,null,null,null,null,null,"2019-02-05",11955]
[null,null,null,null,null,null,null,null,"2019-02-05",10348]
[null,null,null,null,null,null,null,null,"2019-02-05",12474]
[null,null,null,null,null,null,null,null,"2019-02-05",13049]
[null,null,null,null,null,null,null,null,"2019-03-04",14158]
[null,null,null,null,null,null,null,null,"2019-03-04",10246]
[null,null,null,null,null,null,null,null,"2019-03-04",11734]
[null,null,null,null,null,null,null,null,"2019-03-04",14252]
[null,null,null,null,null,null,null,null,"2019-03-04",13681]
[null,null,null,null,null,null,null,null,"2019-04-06",11567]
[null,null,null,null,null,null,null,null,"2019-04-06",14087]
[null,null,null,null,null,null,null,null,"2019-04-06",10091]
[null,null,null,null,null,null,null,null,"2019-04-12",12997]
[null,null,null,null,null,null,null,null,"1903-04-18",14032]
[null,null,null,null,null,null,null,null,"1903-04-19",12003]
[null,null,null,null,null,null,null,null,"1903-04-20",10573]
[null,null,null,null,null,null,null,null,"1903-04-21",13560]
[null,null,null,null,null,null,null,null,"1903-04-22",10165]
[null,null,null,null,null,null,null,null,"1903-04-23",11917]
[null,null,null,null,null,null,null,null,"1903-04-24",11855]
[null,null,null,null,null,null,null,null,"1903-04-25",11476]
[null,null,null,null,null,null,null,null,"1903-04-26",13146]
[null,null,null,null,null,null,null,null,"2019-04-26",13915]
[null,null,null,null,null,null,null,null,"2019-04-26",14346]
[null,null,null,null,null,null,null,null,"2019-04-27",10933]
[null,null,null,null,null,null,null,null,"2019-04-28",10585]
[null,null,null,null,null,null,null,null,"2019-04-29",{"$f":"RANDBETWEEN(10000,15000)","v":12562}]
[null,null,null,null,null,null,null,null,"2019-04-30",14726]
[null,null,null,null,null,null,null,null,"2019-05-01",13608]
[null,null,null,null,null,null,null,null,"2019-05-02",10539]
[null,null,null,null,null,null,null,null,"2019-05-03",10450]
[null,null,null,null,null,null,null,null,"2019-05-04",14990]
[null,null,null,null,null,null,null,null,"2019-05-05",11958]
[null,null,null,null,null,null,null,null,"2019-05-06",11316]
[null,null,null,null,null,null,null,null,"2019-05-07",13204]
[null,null,null,null,null,null,null,null,"2019-05-08",10323]
[null,null,null,null,null,null,null,null,"2019-05-09",10053]
[null,null,null,null,null,null,null,null,"2019-05-10",12574]
[null,null,null,null,null,null,null,null,"2019-05-11",13650]
[null,null,null,null,null,null,null,null,"2019-05-12",11119]
[null,null,null,null,null,null,null,null,"2019-05-13",10696]
[null,null,null,null,null,null,null,null,"2019-05-14",10865]
[null,null,null,null,null,null,null,null,"2019-05-15",12213]
[null,null,null,null,null,null,null,null,"2019-05-16",11156]
[null,null,null,null,null,null,null,null,"2019-05-17",12351]
[null,null,null,null,null,null,null,null,"2019-05-18",13041]
[null,null,null,null,null,null,null,null,"2019-05-19",13131]
[null,null,null,null,null,null,null,null,"2019-05-20",13258]
[null,null,null,null,null,null,null,null,"2019-05-21",12656]
[null,null,null,null,null,null,null,null,"2019-05-22",10898]
[null,null,null,null,null,null,null,null,"2019-05-23",13947]
[null,null,null,null,null,null,null,null,"2019-05-24",13240]
[null,null,null,null,null,null,null,null,"2019-05-25",12804]
[null,null,null,null,null,null,null,null,"2019-05-26",13818]
[null,null,null,null,null,null,null,null,"2019-05-27",13366]
[null,null,null,null,null,null,null,null,"2019-05-28",14059]
[null,null,null,null,null,null,null,null,"2019-05-29",11679]
[null,null,null,null,null,null,null,null,"2019-05-30",10597]
[null,null,null,null,null,null,null,null,"2019-05-31",12195]